lending/lending_fUSD_20250318
["ID","MTS","AMOUNT","RATE_DAILY","PERIOD"]
[356338711,1742295048619,-211.035979,0.0001683,2]
[356338712,1742295048629,-151.0,0.0001683,2]
[356338713,1742295048639,-151.0,0.0001683,2]
[356338714,1742295048649,-151.0,0.0001683,2]
[356338715,1742295048660,-151.0,0.0001683,2]
[356338716,1742295048671,-151.0,0.0001683,2]
[356338717,1742295048680,-176.032,0.0001683,2]
[356338718,1742295048690,-151.0,0.0001683,2]
[356338719,1742295048700,-151.0,0.0001683,2]
[356338720,1742295048711,-151.0,0.0001683,2]
[356338721,1742295048721,-151.0,0.0001683,2]
[356338722,1742295048731,-225.404295,0.0001683,2]
[356338723,1742295048740,-225.404295,0.0001683,2]
[356338724,1742295048751,-151.0,0.0001683,2]
[356338725,1742295048761,-151.0,0.0001683,2]
[356338726,1742295048775,-178.513681,0.0001683,2]
[356338727,1742295048785,-151.0,0.0001683,2]
[356338728,1742295048795,-151.0,0.0001683,2]
[356338729,1742295048805,-151.0,0.0001683,2]
[356338730,1742295048815,-156.04025,0.0001683,2]
[356338731,1742295048826,-151.0,0.0001683,2]
[356338732,1742295048836,-151.0,0.0001683,2]
[356338733,1742295048847,-151.0,0.0001683,2]
[356338734,1742295048856,-1211.885828,0.0001683,2]
[356338735,1742295048877,-151.0,0.0001683,2]
[356338736,1742295048895,-1211.885828,0.0001683,2]
[356338737,1742295048916,-380.342,0.00016941,2]
[356338738,1742295048939,-269.68,0.00016992,2]
[356338739,1742295048955,-450.0,0.00017,2]
[356338740,1742295048977,-150.0,0.00017,7]
[356338741,1742295048999,-190.861395,0.00017,2]
[356338742,1742295049019,-10512.0134434,0.00017002,2]
[356338743,1742295049037,-322.92443114,0.0001728,2]
[356338744,1742295049059,-219.4,0.00017471,2]
[356338745,1742295049076,-1000.0,0.00017978,2]
[356338746,1742295049106,-200.0,0.00018082,2]
[356338747,1742295049125,-150.26,0.00018493,2]
[356338748,1742295049153,-157.65,0.000186,2]
[356338749,1742295049169,-153.78,0.0001872,2]
[356338750,1742295049192,-1156.99,0.00018857,2]
[356338751,1742295049215,-500.0,0.00019,2]
[356338752,1742295049238,-322.92443114,0.00019124,2]
[356338753,1742295049262,-151.0,0.00019178,2]
[356338754,1742295049291,-265.991653,0.00019178,2]
[356338755,1742295049312,-775.9497698,0.00019178,2]
[356338756,1742295049331,-1000.0,0.00019178,2]
[356338757,1742295049351,-640.43224137,0.0001953,2]
[356338758,1742295049368,-1000.0,0.00019613,2]
[356338759,1742295049385,-219.4,0.00019655,2]
[356338760,1742295049403,-648.13939583,0.00019827,2]
[356338761,1742295049420,-613.99909357,0.00019827,2]
[356338762,1742295049438,-193.23537491,0.00019827,2]
[356338763,1742295049454,-6831.58352005,0.00019827,2]
[356338764,1742295049471,-1385.51080805,0.00019827,2]
[356338765,1742295049487,-168.07,0.00019979,2]
[356338766,1742295049502,-1013.0,0.0002,6]
[356338767,1742295049519,-151.0,0.0002,2]
[356338768,1742295049536,-300.0,0.0002,2]
[356338769,1742295049552,-170.22706,0.0002,2]
[356338770,1742295049568,-2000.0,0.0002,4]
[356338771,1742295049585,-1199.31410932,0.00020015,2]
[356338772,1742295049602,-3000.0,0.000201,2]
[356338773,1742295049619,-1000.0,0.000201,2]
[356338774,1742295049636,-300.0,0.000202,2]
[356338775,1742295049652,-300.0,0.000204,2]
[356338776,1742295049671,-174.34,0.00020548,2]
[356338777,1742295049687,-300.0,0.000206,2]
[356338778,1742295049704,-300.0,0.000208,2]
[356338779,1742295049720,-322.92443114,0.00020969,2]
[356338780,1742295049736,-550.0,0.00021,2]
[356338781,1742295049752,-202.18264,0.00021,2]
[356338782,1742295049768,-2000.0,0.00021,4]
[356338783,1742295049787,-1156.99,0.00021121,2]
[356338784,1742295049803,-157.65,0.00021211,2]
[356338785,1742295049820,-151.0,0.00021211,2]
[356338786,1742295049836,-241.696683,0.00021211,2]
[356338787,1742295049852,-151.0,0.00021211,2]
[356338788,1742295049869,-181.739404,0.00021211,2]
[356338789,1742295049884,-400.595796,0.00021211,2]
[356338790,1742295049899,-151.0,0.00021211,2]
[356338791,1742295049915,-400.595796,0.00021211,2]
[356338792,1742295049930,-1199.31410932,0.0002146,2]
[356338793,1742295049946,-153.384424,0.00021489,2]
[356338794,1742295049962,-153.384424,0.00021489,2]
[356338795,1742295049978,-592.49,0.00021569,2]
[356338796,1742295049992,-150.0,0.000217,14]
[356338797,1742295050009,-219.4,0.00021839,2]
[356338798,1742295050024,-384.55,0.00021917,2]
[356338799,1742295050038,-228.42496579,0.00022,10]
[356338800,1742295050053,-1083.44986066,0.00022,2]
[356338801,1742295050068,-151.0,0.00022,7]
[356338802,1742295050083,-154.168339,0.00022,7]
[356338803,1742295050098,-156.485111,0.00022,7]
[356338804,1742295050112,-151.0,0.00022,7]
[356338805,1742295050128,-151.0,0.00022,7]
[356338806,1742295050142,-151.0,0.00022,7]
[356338807,1742295050156,-151.0,0.00022,7]
[356338808,1742295050171,-151.70396,0.00022,7]
[356338809,1742295050187,-151.0,0.00022,7]
[356338810,1742295050202,-180.56354,0.00022,7]
[356338811,1742295050217,-225.404295,0.00022,7]
[356338812,1742295050232,-225.404295,0.00022,7]
[356338813,1742295050248,-165.172522,0.00022,7]
[356338814,1742295050262,-151.0,0.00022,7]
[356338815,1742295050278,-222.372043,0.00022,7]
[356338816,1742295050295,-270.350595,0.00022,7]
[356338817,1742295050309,-151.0,0.00022,7]
[356338818,1742295050324,-151.0,0.00022,7]
[356338819,1742295050339,-2000.0,0.00022,4]
[356338820,1742295050354,-251.939864,0.00022,7]
[356338821,1742295050371,-151.0,0.00022,7]
[356338822,1742295050386,-1211.885828,0.00022,7]
[356338823,1742295050401,-155.216596,0.00022,7]
[356338824,1742295050417,-1211.885828,0.00022,7]
[356338825,1742295050431,-153.0,0.00022,2]
[356338826,1742295050446,-1578.41,0.000221,2]
[356338827,1742295050460,-151.0,0.000221,7]
[356338828,1742295050477,-151.0,0.000221,7]
[356338829,1742295050493,-151.0,0.000221,7]
[356338830,1742295050508,-151.0,0.000221,7]
[356338831,1742295050523,-406.739551,0.000221,7]
[356338832,1742295050538,-406.739551,0.000221,7]
[356338833,1742295050553,-1000.0,0.000221,14]
[356338834,1742295050568,-1000.0,0.000221,14]
[356338835,1742295050584,-151.0,0.000221,7]
[356338836,1742295050599,-1000.0,0.000221,14]
[356338837,1742295050614,-1000.0,0.000221,14]
[356338838,1742295050629,-1042.155683,0.000221,14]
[356338839,1742295050645,-3000.0,0.000228,2]
[356338840,1742295050660,-322.92443114,0.00022814,2]
[356338841,1742295050676,-1199.31410932,0.00022905,2]
[356338842,1742295050692,-600.0,0.00023,2]
[356338843,1742295050707,-2000.0,0.00023,4]
[356338844,1742295050724,-648.13939583,0.00023135,2]
[356338845,1742295050740,-384.55,0.00023287,2]
[356338846,1742295050755,-150.26,0.00023288,2]
[356338847,1742295050773,-958.0,0.00023384,2]
[356338848,1742295050791,-1156.99,0.00023384,2]
[356338849,1742295050806,-1008.21,0.00023836,2]
[356338850,1742295051131,-2000.0,0.00024,4]
[356338851,1742295051163,-200.0,0.00024,120]
[356338852,1742295051177,-382.97866879,0.00024,6]
[356338853,1742295051188,-219.4,0.00024023,2]
[356338854,1742295051197,-1199.31410932,0.0002435,2]
[356338855,1742295051207,-384.55,0.00024657,2]
[356338856,1742295051218,-1000.0,0.00024658,2]
[356338857,1742295051227,-150.0,0.00024658,2]
[356338858,1742295051237,-322.92443114,0.00024659,2]
[356338859,1742295051247,-268.93,0.00024712,30]
[356338860,1742295051257,-196.49046602,0.00024742,8]
[356338861,1742295051266,-2072.215,0.00024742,8]
[356338862,1742295051277,-153.384424,0.000248,7]
[356338863,1742295051287,-153.384424,0.000248,7]
[356338864,1742295051296,-151.0,0.000248,7]
[356338865,1742295051306,-151.0,0.000248,7]
[356338866,1742295051315,-151.0,0.000248,7]
[356338867,1742295051324,-181.739404,0.000248,7]
[356338868,1742295051333,-400.595796,0.000248,7]
[356338869,1742295051343,-151.0,0.000248,7]
[356338870,1742295051353,-400.595796,0.000248,7]
[356338871,1742295051363,-151.0,0.000248,7]
[356338872,1742295051372,-151.0,0.000248,7]
[356338873,1742295051382,-151.0,0.000248,7]
[356338874,1742295051392,-151.0,0.000248,7]
[356338875,1742295051402,-156.414997,0.000248,7]
[356338876,1742295051412,-406.739551,0.000248,7]
[356338877,1742295051422,-406.739551,0.000248,7]
[356338878,1742295051432,-151.0,0.000248,7]
[356338879,1742295051442,-178.441989,0.000248,7]
[356338880,1742295051452,-153.701012,0.000248,7]
[356338881,1742295051461,-151.0,0.000248,7]
[356338882,1742295051471,-151.0,0.000248,7]
[356338883,1742295051482,-151.0,0.000248,7]
[356338884,1742295051491,-619653.538293,0.000248,3]
[356338885,1742295051501,-225.404295,0.000248,7]
[356338886,1742295051511,-225.404295,0.000248,7]
[356338887,1742295051520,-151.0,0.000248,7]
[356338888,1742295051530,-151.0,0.000248,7]
[356338889,1742295051540,-151.0,0.000248,7]
[356338890,1742295051550,-151.0,0.000248,7]
[356338891,1742295051560,-1211.885828,0.000248,7]
[356338892,1742295051569,-1211.885828,0.000248,7]
[356338893,1742295051581,-1578.41,0.000249,2]
[356338894,1742295051590,-153.384424,0.000249,7]
[356338895,1742295051600,-153.384424,0.000249,7]
[356338896,1742295051610,-157.311974,0.000249,7]
[356338897,1742295051619,-152.773112,0.000249,7]
[356338898,1742295051629,-151.0,0.000249,7]
[356338899,1742295051643,-160.077469,0.000249,7]
[356338900,1742295051655,-152.371078,0.000249,7]
[356338901,1742295051665,-175.302457,0.000249,7]
[356338902,1742295051675,-406.739551,0.000249,7]
[356338903,1742295051685,-406.739551,0.000249,7]
[356338904,1742295051695,-151.0,0.000249,7]
[356338905,1742295051705,-151.0,0.000249,7]
[356338906,1742295051715,-154.312038,0.000249,7]
[356338907,1742295051725,-151.0,0.000249,7]
[356338908,1742295051736,-225.404295,0.000249,7]
[356338909,1742295051746,-225.404295,0.000249,7]
[356338910,1742295051756,-2000.0,0.000249,7]
[356338911,1742295051766,-2000.0,0.000249,7]
[356338912,1742295051781,-2000.0,0.000249,7]
[356338913,1742295051791,-2000.0,0.000249,7]
[356338914,1742295051801,-1313.525029,0.000249,7]
[356338915,1742295051812,-151.0,0.000249,7]
[356338916,1742295051822,-151.0,0.000249,7]
[356338917,1742295051833,-151.0,0.000249,7]
[356338918,1742295051844,-200.0,0.00025,120]
[356338919,1742295051854,-650.0,0.00025,2]
[356338920,1742295051864,-170.22707,0.00025,2]
[356338921,1742295051873,-2000.0,0.00025,4]
[356338922,1742295051883,-200.83,0.00025185,2]
[356338923,1742295051894,-442.45,0.00025185,2]
[356338924,1742295051904,-779.87,0.00025185,2]
[356338925,1742295051913,-442.45,0.00025185,2]
[356338926,1742295051923,-779.87,0.00025185,2]
[356338927,1742295051933,-442.45,0.00025185,2]
[356338928,1742295051943,-779.87,0.00025185,2]
[356338929,1742295051952,-778.03,0.00025185,2]
[356338930,1742295051962,-442.45,0.00025185,2]
[356338931,1742295051972,-345.8358401,0.000253,10]
[356338932,1742295051982,-150.0,0.00025306,2]
[356338933,1742295051992,-8500.0,0.00025514,2]
[356338934,1742295052002,-8500.0,0.00025523,2]
[356338935,1742295052011,-8500.0,0.00025532,2]
[356338936,1742295052021,-8500.0,0.00025541,2]
[356338937,1742295052031,-8500.0,0.00025548,2]
[356338938,1742295052041,-8500.0,0.00025549,2]
[356338939,1742295052050,-151.0,0.00025556,7]
[356338940,1742295052060,-151.0,0.00025556,7]
[356338941,1742295052069,-181.739404,0.00025556,7]
[356338942,1742295052078,-400.595796,0.00025556,7]
[356338943,1742295052087,-151.0,0.00025556,7]
[356338944,1742295052097,-400.595796,0.00025556,7]
[356338945,1742295052106,-151.0,0.00025556,7]
[356338946,1742295052115,-1211.885828,0.00025556,7]
[356338947,1742295052125,-1211.885828,0.00025556,7]
[356338948,1742295052135,-8500.0,0.00025556,2]
[356338949,1742295052144,-8500.0,0.00025556,2]
[356338950,1742295052153,-175.302457,0.00025558,7]
[356338951,1742295052162,-8500.0,0.00025558,2]
[356338952,1742295052172,-151.0,0.00025565,7]
[356338953,1742295052181,-406.739551,0.00025565,7]
[356338954,1742295052191,-406.739551,0.00025565,7]
[356338955,1742295052201,-151.0,0.00025565,7]
[356338956,1742295052211,-151.0,0.00025565,7]
[356338957,1742295052221,-151.0,0.00025565,7]
[356338958,1742295052231,-225.404295,0.00025565,7]
[356338959,1742295052240,-225.404295,0.00025565,7]
[356338960,1742295052251,-151.0,0.00025565,7]
[356338961,1742295052261,-151.0,0.00025565,7]
[356338962,1742295052271,-151.0,0.00025565,7]
[356338963,1742295052281,-8500.0,0.00025565,2]
[356338964,1742295052290,-8500.0,0.00025565,2]
[356338965,1742295052300,-8500.0,0.00025565,2]
[356338966,1742295052310,-8500.0,0.00025567,2]
[356338967,1742295052320,-8500.0,0.00025567,2]
[356338968,1742295052332,-8500.0,0.00025567,2]
[356338969,1742295052342,-3000.0,0.000256,2]
[356338970,1742295052352,-1156.99,0.00025648,2]
[356338971,1742295052362,-500.0,0.0002569,120]
[356338972,1742295052372,-153.384424,0.0002569,7]
[356338973,1742295052382,-153.384424,0.0002569,7]
[356338974,1742295052392,-1199.31410932,0.00025795,2]
[356338975,1742295052402,-150.0,0.00025955,2]
[356338976,1742295052411,-300.0,0.00026,120]
[356338977,1742295052422,-2000.0,0.00026,4]
[356338978,1742295052433,-399.31,0.00026007,2]
[356338979,1742295052443,-304.84,0.00026007,2]
[356338980,1742295052454,-384.55,0.00026027,2]
[356338981,1742295052464,-779.87,0.00026112,2]
[356338982,1742295052475,-442.45,0.00026112,2]
[356338983,1742295052485,-779.87,0.00026112,2]
[356338984,1742295052495,-442.45,0.00026112,2]
[356338985,1742295052506,-779.87,0.00026112,2]
[356338986,1742295052515,-442.45,0.00026112,2]
[356338987,1742295052525,-442.45,0.00026112,2]
[356338988,1742295052535,-779.87,0.00026112,2]
[356338989,1742295052546,-779.87,0.00026112,2]
[356338990,1742295052555,-442.45,0.00026112,2]
[356338991,1742295052565,-779.87,0.00026112,2]
[356338992,1742295052575,-779.87,0.00026112,2]
[356338993,1742295052585,-442.45,0.00026112,2]
[356338994,1742295052596,-779.87,0.00026112,2]
[356338995,1742295052606,-779.87,0.00026112,2]
[356338996,1742295052616,-442.45,0.00026112,2]
[356338997,1742295052626,-779.87,0.00026112,2]
[356338998,1742295052636,-442.45,0.00026112,2]
[356338999,1742295052646,-442.45,0.00026112,2]
[356339000,1742295052656,-420.82,0.00026112,2]
[356339001,1742295052666,-442.45,0.00026112,2]
[356339002,1742295052677,-442.45,0.00026112,2]
[356339003,1742295052687,-442.45,0.00026112,2]
[356339004,1742295052697,-245.86,0.00026112,2]
[356339005,1742295052707,-219.4,0.00026207,120]
[356339006,1742295052717,-500.0,0.00026267,7]
[356339007,1742295052727,-548.47941959,0.00026267,7]
[356339008,1742295052737,-151.0,0.00026444,7]
[356339009,1742295052748,-1211.885828,0.00026444,7]
[356339010,1742295052758,-1211.885828,0.00026444,7]
[356339011,1742295052769,-648.13939583,0.00026444,2]
[356339012,1742295052782,-322.92443114,0.00026504,2]
[356339013,1742295052792,-150.0,0.00026604,2]
[356339014,1742295052802,-150.0,0.00026829,2]
[356339015,1742295052812,-897.91,0.00026829,2]
[356339016,1742295052822,-362.31,0.00026829,2]
[356339017,1742295052833,-421.73,0.00026829,2]
[356339018,1742295052843,-351.67,0.00026829,2]
[356339019,1742295052853,-303.06,0.00026829,2]
[356339020,1742295052863,-597.7,0.00026849,2]
[356339021,1742295052873,-775.34,0.00026849,2]
[356339022,1742295052883,-2000.0,0.00027,4]
[356339023,1742295052895,-150.0,0.00027,2]
[356339024,1742295052905,-700.0,0.00027,2]
[356339025,1742295052916,-151.0,0.00027071,7]
[356339026,1742295052926,-151.0,0.00027071,7]
[356339027,1742295052936,-181.739404,0.00027071,7]
[356339028,1742295052946,-400.595796,0.00027071,7]
[356339029,1742295052956,-151.0,0.00027071,7]
[356339030,1742295052966,-400.595796,0.00027071,7]
[356339031,1742295052975,-151.0,0.00027071,7]
[356339032,1742295052985,-151.0,0.00027071,7]
[356339033,1742295052995,-1199.31410932,0.0002724,2]
[356339034,1742295053005,-150.0,0.00027253,2]
[356339035,1742295053015,-151.0,0.00027397,7]
[356339036,1742295053025,-175.302457,0.00027397,7]
[356339037,1742295053036,-384.55,0.00027397,2]
[356339038,1742295053046,-406.739551,0.00027397,7]
[356339039,1742295053055,-406.739551,0.00027397,7]
[356339040,1742295053065,-151.0,0.00027397,7]
[356339041,1742295053075,-151.0,0.00027397,7]
[356339042,1742295053084,-719.74,0.00027397,60]
[356339043,1742295053094,-719.74,0.00027397,60]
[356339044,1742295053104,-719.74,0.00027397,60]
[356339045,1742295053114,-719.74,0.00027397,60]
[356339046,1742295053123,-719.74,0.00027397,60]
[356339047,1742295053133,-719.74,0.00027397,60]
[356339048,1742295053143,-719.74,0.00027397,60]
[356339049,1742295053153,-719.74,0.00027397,60]
[356339050,1742295053163,-719.74,0.00027397,60]
[356339051,1742295053173,-719.74,0.00027397,60]
[356339052,1742295053183,-719.74,0.00027397,60]
[356339053,1742295053192,-719.74,0.00027397,60]
[356339054,1742295053202,-719.74,0.00027397,60]
[356339055,1742295053212,-719.74,0.00027397,60]
[356339056,1742295053222,-719.74,0.00027397,60]
[356339057,1742295053231,-719.74,0.00027397,60]
[356339058,1742295053242,-719.74,0.00027397,60]
[356339059,1742295053252,-719.74,0.00027397,60]
[356339060,1742295053261,-719.74,0.00027397,60]
[356339061,1742295053271,-719.74,0.00027397,60]
[356339062,1742295053281,-719.74,0.00027397,60]
[356339063,1742295053291,-719.74,0.00027397,60]
[356339064,1742295053301,-719.74,0.00027397,60]
[356339065,1742295053311,-719.85804817,0.00027397,60]
[356339066,1742295053321,-151.0,0.00027397,7]
[356339067,1742295053332,-225.404295,0.00027397,7]
[356339068,1742295053342,-225.404295,0.00027397,7]
[356339069,1742295053353,-151.0,0.00027397,7]
[356339070,1742295053362,-900.0,0.00027397,2]
[356339071,1742295053371,-900.0,0.00027397,2]
[356339072,1742295053381,-900.0,0.00027397,2]
[356339073,1742295053391,-900.0,0.00027397,2]
[356339074,1742295053401,-900.0,0.00027397,2]
[356339075,1742295053410,-900.0,0.00027397,2]
[356339076,1742295053419,-900.0,0.00027397,2]
[356339077,1742295053429,-900.0,0.00027397,2]
[356339078,1742295053439,-900.0,0.00027397,2]
[356339079,1742295053449,-900.0,0.00027397,2]
[356339080,1742295053459,-5635.1070385,0.0002751,2]
[356339081,1742295053468,-1578.41,0.000276,2]
[356339082,1742295053478,-441.71,0.00027619,2]
[356339083,1742295053487,-301.08,0.00027619,2]
[356339084,1742295053497,-426.27,0.00027619,2]
[356339085,1742295053507,-441.71,0.00027619,2]
[356339086,1742295053516,-150.0,0.00027619,2]
[356339087,1742295053526,-441.71,0.00027619,2]
[356339088,1742295053536,-150.0,0.00027619,2]
[356339089,1742295053545,-150.0,0.00027619,2]
[356339090,1742295053555,-150.0,0.00027619,2]
[356339091,1742295053564,-441.71,0.00027619,2]
[356339092,1742295053574,-374.77,0.00027619,2]
[356339093,1742295053583,-441.71,0.00027619,2]
[356339094,1742295053593,-150.0,0.00027619,2]
[356339095,1742295053602,-345.61,0.00027619,2]
[356339096,1742295053611,-150.0,0.00027619,2]
[356339097,1742295053621,-150.0,0.00027619,2]
[356339098,1742295053631,-150.0,0.00027619,2]
[356339099,1742295053641,-387.15,0.00027619,2]
[356339100,1742295053651,-345.61,0.00027619,2]
[356339101,1742295053660,-153.46,0.00027619,2]
[356339102,1742295053670,-345.61,0.00027619,2]
[356339103,1742295053679,-150.0,0.00027619,2]
[356339104,1742295053689,-344.73,0.00027619,2]
[356339105,1742295053699,-150.0,0.00027619,2]
[356339106,1742295053709,-150.0,0.00027619,2]
[356339107,1742295053718,-150.0,0.00027902,2]
[356339108,1742295053728,-500.0,0.00027911,7]
[356339109,1742295053738,-1156.99,0.00027912,2]
[356339110,1742295053747,-300.0,0.00028,120]
[356339111,1742295053758,-2000.0,0.00028,4]
[356339112,1742295053769,-150.26,0.00028082,2]
[356339113,1742295053785,-500.0,0.0002811,120]
[356339114,1742295053795,-3000.0,0.000283,2]
[356339115,1742295053805,-150.0,0.00028551,2]
[356339116,1742295053815,-150.0,0.00028624,2]
[356339117,1742295053827,-1199.31410932,0.00028685,2]
[356339118,1742295053837,-384.55,0.00028767,2]
[356339119,1742295053847,-150.0,0.00028842,2]
[356339120,1742295053856,-20000.0,0.00029,2]
[356339121,1742295053866,-200.0,0.00029,120]
[356339122,1742295053877,-750.0,0.00029,2]
[356339123,1742295053887,-153.384424,0.00029,7]
[356339124,1742295053896,-153.384424,0.00029,7]
[356339125,1742295053906,-151.0,0.00029,7]
[356339126,1742295053916,-2000.0,0.00029,4]
[356339127,1742295053925,-1211.885828,0.00029,7]
[356339128,1742295053936,-1211.885828,0.00029,7]
[356339129,1742295053946,-268.93,0.00029191,30]
[356339130,1742295053955,-502.11201907,0.00029197,5]
[356339131,1742295053966,-150.0,0.000292,2]
[356339132,1742295053977,-1578.41,0.000293,2]
[356339133,1742295053987,-151.0,0.000293,7]
[356339134,1742295053997,-151.0,0.000293,7]
[356339135,1742295054006,-181.739404,0.000293,7]
[356339136,1742295054016,-400.595796,0.000293,7]
[356339137,1742295054025,-151.0,0.000293,7]
[356339138,1742295054035,-400.595796,0.000293,7]
[356339139,1742295054045,-150.0,0.00029428,2]
[356339140,1742295054056,-150.0,0.00029542,2]
[356339141,1742295054067,-150.0,0.00029548,2]
[356339142,1742295054077,-372.3806642,0.00029555,7]
[356339143,1742295054088,-3000.0,0.000296,2]
[356339144,1742295054098,-151.0,0.000296,7]
[356339145,1742295054108,-151.0,0.000296,7]
[356339146,1742295054119,-2561.68,0.000297,2]
[356339147,1742295054129,-150.0,0.00029704,2]
[356339148,1742295054139,-1000.0,0.00029709,2]
[356339149,1742295054149,-150.0,0.00029738,2]
[356339150,1742295054158,-150.0,0.00029745,2]
[356339151,1742295054168,-158.47579151,0.00029753,2]
[356339152,1742295054179,-151.0,0.00029753,7]
[356339153,1742295054189,-175.302457,0.00029753,7]
[356339154,1742295054199,-648.13939583,0.00029753,2]
[356339155,1742295054208,-613.99909357,0.00029753,20]
[356339156,1742295054218,-193.23537491,0.00029753,2]
[356339157,1742295054228,-6831.58352005,0.00029753,2]
[356339158,1742295054237,-150.0,0.00029767,2]
[356339159,1742295054248,-463.0,0.0002979,2]
[356339160,1742295054258,-1000.0,0.00029797,2]
[356339161,1742295054268,-3539.56161631,0.000298,2]
[356339162,1742295054482,-2021.50627539,0.000298,30]
[356339163,1742295054493,-406.739551,0.00029832,7]
[356339164,1742295054504,-406.739556,0.00029832,7]
[356339165,1742295054514,-151.0,0.00029832,7]
[356339166,1742295054523,-188.818107,0.00029832,7]
[356339167,1742295054534,-8922.4620636,0.00029832,2]
[356339168,1742295054543,-7332.9106839,0.00029832,2]
[356339169,1742295054553,-5743.3593041,0.00029832,2]
[356339170,1742295054563,-4153.8079244,0.00029832,2]
[356339171,1742295054573,-2564.2565446,0.00029832,2]
[356339172,1742295054583,-225.404295,0.00029832,7]
[356339173,1742295054592,-225.404297,0.00029832,7]
[356339174,1742295054602,-151.0,0.00029832,7]
[356339175,1742295054612,-150.0,0.00029849,2]
[356339176,1742295054622,-151.0,0.00029852,2]
[356339177,1742295054632,-8232.89718831,0.00029852,3]
[356339178,1742295054643,-1546807.48030887,0.00029853,2]
[356339179,1742295055356,-10100.20220968,0.00029853,2]
[356339180,1742295284968,250.0,9e-05,2]
[356339214,1742296237671,-202.88675204,0.0001,2]
[356339215,1742296237682,-300.0,0.00011,2]
[356339216,1742296237691,-8000.0,0.00012999,2]
[356339217,1742296237701,-350.0,0.00013,2]
[356339218,1742296237710,-300.0,0.00013319,2]
[356339219,1742296237719,-13610.08595912,0.0001332,2]
[356339220,1742296237735,-10289.91404088,0.0001332,2]
[356339221,1742296237745,-200.0,0.00013699,2]
[356339222,1742296237754,-150.26,0.00013699,2]
[356339223,1742296237764,-1327.77224478,0.000139,2]
[356339224,1742296237774,-420.0,0.00014601,2]
[356339225,1742296237783,-400.0,0.00015,2]
[356339226,1742296237792,-294.29,0.00015,2]
[356339227,1742296237802,-1327.77224455,0.00015038,2]
[356339228,1742296237811,-415.48884996,0.00016008,2]
[356339232,1742296239813,-171.51115004,0.00016008,2]
[356339233,1742296239824,-1327.77224455,0.00016176,2]
[356339234,1742296239834,-2710.82507282,0.00016997,2]
[356339235,1742296239867,-112.59492718,0.00016997,2]
[356339236,1742296239883,-450.0,0.00017,2]
[356339237,1742296239895,-150.99,0.00017,2]
[356339238,1742296239905,-1327.77224455,0.00017314,2]
[356339239,1742296239915,-823.0,0.00017549,2]
[356339240,1742296239925,-1327.77224455,0.00018452,2]
[356339241,1742296239935,-500.0,0.00019,2]
[356339242,1742296239945,-1327.77224455,0.0001959,2]
[356339243,1742296239955,-500.0,0.00019616,2]
[356339244,1742296239965,-1327.77224455,0.00020728,2]
[356339245,1742296239977,-550.0,0.00021,2]
[356339246,1742296239987,-1327.77224455,0.00021866,3]